Cogmind - Beta 15 @@@ ROGUE MODE // 2025.10.06 @ 21:23:14 Player: DietSnapple Result: Destroyed by Y-45 Defender with Heavy Assault Rifle Performance ------------- Evolutions (2) 1000 Regions Visited (5) 1000 Robots Destroyed (39) 195 Value Destroyed (1000) 1000 Prototype IDs (1) 20 Alien Tech Used (0) 0 Bonus (0) 0 TOTAL SCORE: 3215 Bonus ------- None Cogmind --------- Core Integrity 0/550 Matter 300/300 Energy 100/100 System Corruption 4% Temperature Cool (18) Movement Core (50) Location -8/Materials Parts ------- > --- POWER (1) -------- (None) > --- PROPULSION (3) --- (None) > --- UTILITY (5) ------ Advanced Visual Processing Unit Improved Signal Interpreter Improved Utility Shielding > --- WEAPON (2) ------- (None) > --- INVENTORY (5) ---- Medium Battery (150) Weight Redist. System Signal Interpreter Improved Datajack Peak State ------------ > --- POWER ------------ (None) > --- PROPULSION ------- Wheel Flight Unit > --- UTILITY ---------- Advanced Visual Processing Unit Improved Signal Interpreter Improved Utility Shielding Hacking Suite Hacking Suite > --- WEAPON ----------- Katana > --- INVENTORY -------- Medium Battery Signal Interpreter Improved Datajack [Rating: 20] Favorites ----------- Power Ion Engine Engine Ion Engine Power Core Light Nuclear Core Propulsion Compact Wheel Treads Light Treads Wheel Compact Wheel Flight Unit Flight Unit Utility Large Storage Unit Storage Large Storage Unit Processor Targeting Computer Hackware Hacking Suite Protection Improved Utility Shielding Weapon Assault Rifle Energy Gun Medium Laser Ballistic Gun Assault Rifle Launcher Grenade Launcher Slashing Weapon Katana Build | -11 -10 -10 -10 -9 -8 ------- Run | Yrd Mat Min Exi Min Mat Slots Evolved 4 | . . . . . 4 Power . | . . . . . . Propulsion 1 | . . . . . 1 Utility 3 | . . . . . 3 Weapon . | . . . . . . Parts Attached 36 | 7 6 1 1 1 20 Power 7 | 1 1 1 . 1 3 Engine 5 | 1 1 1 . . 2 Core 2 | . . . . 1 1 Reactor . | . . . . . . Propulsion 10 | 2 2 . . . 6 Treads 2 | . 2 . . . . Leg . | . . . . . . Wheel 3 | 2 . . . . 1 Hover . | . . . . . . Flight 5 | . . . . . 5 Utility 11 | 1 2 . 1 . 7 Device . | . . . . . . Storage 3 | 1 1 . . . 1 Processor 4 | . 1 . 1 . 2 Hackware 2 | . . . . . 2 Protection 2 | . . . . . 2 Artifact . | . . . . . . Weapon 8 | 3 1 . . . 4 Energy Gun 3 | 2 . . . . 1 Energy Cannon . | . . . . . . Ballistic Gun 3 | 1 1 . . . 1 Ballistic Cannon . | . . . . . . Launcher 1 | . . . . . 1 Special Weapon . | . . . . . . Impact Weapon . | . . . . . . Slashing Weapon 1 | . . . . . 1 Piercing Weapon . | . . . . . . Special Melee Weapon . | . . . . . . Unidentified Prototypes 1 | . . . . . 1 Parts Lost 21 | . 3 1 . 1 16 Power 5 | . 1 1 . . 3 Propulsion 7 | . 1 . . . 6 Utility 2 | . . . . . 2 Weapon 7 | . 1 . . 1 5 Highest Loss Streak 7 | . 2 1 . 1 7 To Critical Strikes . | . . . . . . Average Backups 8 | 3 6 9 8 11 3 Power . | . 1 1 1 1 . Propulsion 1 | 1 1 1 1 4 . Utility 3 | . 1 5 4 4 1 Weapon 1 | . 1 2 2 2 . Tool/Special . | . . . . . . Unused Backups 5 | . . . 1 . 4 Power 1 | . . . 1 . . Propulsion . | . . . . . . Utility 3 | . . . . . 3 Weapon . | . . . . . . Tool/Special 1 | . . . . . 1 Average Slot Usage (%) 90 | . 88 99 100 86 60 Engine 9 | . 13 13 14 . 1 Core 2 | . . . . 13 1 Treads 10 | . 3 14 14 14 . Wheel 13 | . 22 14 14 14 2 Flight 1 | . . . . . 11 Storage 12 | . 14 14 14 14 3 Processor 12 | . 6 14 14 14 12 Hackware 1 | . . . . . 11 Energy Gun 3 | . 24 . . . 1 Ballistic Gun 18 | . 2 28 28 15 2 Peak Build Rating 20 | 6 8 8 8 10 20 Average Rating 8 | 4 6 7 7 9 15 On Entrance 6 | . 6 8 8 8 9 Naked Turns . | . . . . . . Heaviest Build 34 | 14 34 28 28 28 27 Greatest Support 26 | 26 26 16 16 16 16 Greatest Overweight (x) 2 | . 1 1 1 1 2 Average Overweight (x) . | . . 1 1 1 . Largest Inventory Capacity 15 | 8 15 15 15 15 15 Average Capacity 13 | 6 12 15 15 15 5 Most Carried 14 | 4 12 9 9 12 14 Average Carried 8 | 3 6 9 8 11 3 Final Capacity 15 | 8 15 15 15 15 5 Final Carried 12 | 4 9 9 8 12 4 Class Distribution -------------------- 93% | Mutant 4% | Hacker-Mutant Dominant Class ---------------- Mutant | -10/Materials Mutant | -10/Mines Mutant | -10/Exiles Mutant | -9/Mines Mutant | -8/Materials Resources | -11 -10 -10 -10 -9 -8 ----------- Run | Yrd Mat Min Exi Min Mat Matter Collected 818 | 196 132 67 . 155 268 Remotely . | . . . . . . Salvage Created 1226 | . 429 85 . 201 511 Parts 74 | . 22 5 . 13 34 Haulers Intercepted 1 | . . . . . 1 Recyclers Shooed . | . . . . . . Parts Field Recycled . | . . . . . . Retrieved Matter . | . . . . . . Parts Self-Destructed . | . . . . . . Prevented . | . . . . . . Kills | -11 -10 -10 -10 -9 -8 ------- Run | Yrd Mat Min Exi Min Mat Combat Hostiles Destroyed 34 | . 11 2 . 6 15 Melee 2 | . . . . . 2 Guns 25 | . 9 2 . 6 8 AOE 5 | . . . . . 5 Classes Destroyed 7 | . 3 . . . 4 Hauler 1 | . . . . . 1 Mechanic 1 | . . . . . 1 Operator 3 | . 2 . . . 1 Swarmer 15 | . 3 . . 3 9 Grunt 15 | . 8 2 . 3 2 Duelist 1 | . . . . . 1 Sentry 3 | . . . . . 3 Best Kill Streak 5 | . 3 2 . 3 5 Combat Bots Only 5 | . 3 2 . 3 5 Max Kills in Single Turn 3 | . 1 1 . 1 3 Gunslinging . | . . . . . . Exploded 3 | . . . . . 3 Melee 1 | . . . . . 1 Uniques/NPCs Destroyed . | . . . . . . Combat | -11 -10 -10 -10 -9 -8 -------- Run | Yrd Mat Min Exi Min Mat Hostile Shots Fired 252 | . 51 10 . 50 141 Missed 88 | . 11 3 . 21 53 Hits 164 | . 40 7 . 29 88 Melee 5 | . . . . . 5 Projectile 159 | . 40 7 . 29 83 Critical Strikes 4 | . 1 1 . . 2 Damage Taken 2022 | . 416 101 . 289 1216 Core 734 | . 97 17 . 63 557 Absorbed by Shields . | . . . . . . Redirected to Shielding 43 | . . . . . 43 Core Remaining (%) 64 | 100 . . . 29 . Volleys Fired 104 | . 43 7 . 21 33 Largest 2 | . 2 2 . 2 2 Hottest 100 | . 100 40 . 40 70 Shots Fired 180 | . 84 14 . 36 46 Gun 172 | . 84 14 . 36 38 Cannon . | . . . . . . Launcher 8 | . . . . . 8 Special . | . . . . . . Kinetic 76 | . 9 14 . 36 17 Thermal 79 | . 75 . . . 4 Explosive 8 | . . . . . 8 Electromagnetic 17 | . . . . . 17 Robot Hit Streak 11 | . 10 5 . 9 11 Robot Miss Streak 4 | . 4 2 . 3 3 Penetration Max . | . . . . . . Secondary Targets 3 | . 1 . . 1 1 Max Gunslinging Chain 1 | . 1 . . 1 1 Shots Hit Robots 123 | . 55 10 . 20 38 Core Hits 61 | . 22 5 . 9 25 Critical Kills . | . . . . . . Critical Parts Destroyed 1 | . . . . 1 . Critical Strikes 9 | . 5 . . 1 3 Burn 6 | . 5 . . . 1 Destroy 1 | . . . . 1 . Sever 2 | . . . . . 2 Melee Attacks 16 | . . . . . 16 Impact . | . . . . . . Slashing 16 | . . . . . 16 Piercing . | . . . . . . Sneak Attacks 2 | . . . . . 2 Combat Hostiles . | . . . . . . Follow-up Attacks . | . . . . . . Damage Inflicted 2127 | . 704 105 . 257 1061 Guns 1374 | . 704 105 . 257 308 Cannons . | . . . . . . Explosions 326 | . . . . . 326 Melee 391 | . . . . . 391 Ramming 36 | . . . . . 36 Kinetic 543 | . 73 105 . 257 108 Thermal 898 | . 631 . . . 267 Explosive 96 | . . . . . 96 Electromagnetic 163 | . . . . . 163 Impact . | . . . . . . Slashing 391 | . . . . . 391 Piercing . | . . . . . . Highest Corruption 4 | . 1 1 1 1 4 Average Corruption 1 | . 1 1 1 1 1 Corruption Purged . | . . . . . . Corruption Blocked . | . . . . . . Effects 28 | . 1 2 16 9 . Message Errors 7 | . . 1 4 2 . Matter Fused 6 | . . . 4 2 . Heat Flow Errors 4 | . . . 1 3 . Energy Discharges 7 | . 1 . 4 2 . Data Loss (minor) 3 | . . . 3 . . Data Loss (major) 1 | . . 1 . . . Overload Shots . | . . . . . . Overflow Damage 64 | . . . . . 64 Projectiles . | . . . . . . Explosions 22 | . . . . . 22 Melee 42 | . . . . . 42 Knockbacks . | . . . . . . Impact . | . . . . . . Kinetic . | . . . . . . Secondary . | . . . . . . Self-Inflicted Damage 161 | . . . . . 161 Shots 7 | . . . . . 7 Rammed 9 | . . . . . 9 Targets Rammed 9 | . . . . . 9 Kicked . | . . . . . . Crushed . | . . . . . . Highest Temperature 423 | . 423 22 250 212 34 Average Temperature 104 | . 128 10 130 62 13 Received Heat Transfer 522 | . 201 78 . 81 162 Effects 4 | . 4 . . . . Interference 2 | . 2 . . . . Damage (minor) 2 | . 2 . . . . Siege Activations . | . . . . . . Martial Activations . | . . . . . . Shielding Activations . | . . . . . . Robots Disrupted . | . . . . . . Combat Hostiles . | . . . . . . Robots Corrupted . | . . . . . . Combat Hostiles . | . . . . . . Parts Fried . | . . . . . . Impact Corruptions . | . . . . . . Robots Melted 2 | . 2 . . . . Combat Hostiles 2 | . 2 . . . . Parts Melted 4 | . 3 . . . 1 Heat Transferred 2742 | . 2257 . . . 485 Parts Sabotaged . | . . . . . . Parts Stolen . | . . . . . . Parts Stripped . | . . . . . . Power Chain Reactions 2 | . . . . . 2 Alert | -11 -10 -10 -10 -9 -8 ------- Run | Yrd Mat Min Exi Min Mat Maximum Alert Level 1 | . . . . . 1 Low Security (%) 96 | 100 100 100 . 100 86 Level 1 3 | . . . . . 13 Level 2 . | . . . . . . Level 3 . | . . . . . . Level 4 . | . . . . . . Level 5 . | . . . . . . High Security . | . . . . . . Max Security . | . . . . . . Peak Influence 237 | . 115 78 . 95 237 Initial 38 | . . 38 . . . Average 55 | . 56 22 . 15 138 Influence Increases 1172 | . 345 50 . 155 622 Destroy 0b10 Robot/C 680 | . 220 40 . 120 300 Destroy 0b10 Robot/NC 25 | . 10 . . . 15 Destroy Leader 162 | . 60 10 . 20 72 Successful Hack 31 | . 23 . . . 8 Disable Machine 45 | . . . . 15 30 Destroy Structure 34 | . 2 . . . 32 Lose Combat Pursuer 195 | . 30 . . . 165 Influence Decreases 968 | . 246 149 . 155 418 Entered New Map 61 | . . 61 . . . Time Decay 697 | . 216 78 . 145 258 Lost Part 210 | . 30 10 . 10 160 Squads Dispatched 6 | . 4 . . . 2 Investigation 5 | . 3 . . . 2 Extermination . | . . . . . . Reinforcement 1 | . 1 . . . . Assault . | . . . . . . Garrison . | . . . . . . Intercept . | . . . . . . Searches Triggered . | . . . . . . Construction Impeded . | . . . . . . Haulers Reinforced . | . . . . . . Active Scanning Responses . | . . . . . . Cargo Convoy Interrupts . | . . . . . . Stealth | -11 -10 -10 -10 -9 -8 --------- Run | Yrd Mat Min Exi Min Mat Distress Signals 3 | . 3 . . . . Communications Jammed . | . . . . . . Distress Signals . | . . . . . . Times Spotted 66 | . 21 2 . 6 37 Peak Tracking Total 9 | . 5 2 . 3 9 Tactical Retreats 7 | . 2 . . . 5 Traps | -11 -10 -10 -10 -9 -8 ------- Run | Yrd Mat Min Exi Min Mat Traps Triggered 3 | . 2 . . . 1 Indirectly . | . . . . . . Trap Hack Attempts . | . . . . . . Triggered . | . . . . . . Disarmed . | . . . . . . Reprogrammed . | . . . . . . Reused . | . . . . . . Traps Extracted . | . . . . . . Installed . | . . . . . . Triggered . | . . . . . . Machines | -11 -10 -10 -10 -9 -8 ---------- Run | Yrd Mat Min Exi Min Mat Machines Disabled 3 | . . . . 1 2 Max in Single Turn 1 | . . . . 1 1 Machines Repaired . | . . . . . . Machines Dismantled . | . . . . . . Machines Sabotaged . | . . . . . . Overloaded Fab Kills . | . . . . . . Hacking | -11 -10 -10 -10 -9 -8 --------- Run | Yrd Mat Min Exi Min Mat Machines Accessed 10 | . 3 . 3 . 4 Terminals 7 | . 3 . . . 4 Fabricators . | . . . . . . Repair Stations . | . . . . . . Recycling Units . | . . . . . . Scanalyzers . | . . . . . . Garrison Access . | . . . . . . Total Hacks 32 | . 12 . 3 . 17 Successful 15 | . 7 . 3 . 5 Failed 17 | . 5 . . . 12 Catastrophic 2 | . 2 . . . . Database Lockouts . | . . . . . . Manual 26 | . 7 . 2 . 17 Terminals 29 | . 12 . . . 17 Fabricators . | . . . . . . Repair Stations . | . . . . . . Recycling Units . | . . . . . . Scanalyzers . | . . . . . . Garrison Access . | . . . . . . Terminal Hacks 9 | . 4 . 3 . 2 Record 3 | . . . 3 . . Branch Access Points 1 | . 1 . . . . Locate Traps 1 | . 1 . . . . Hauler Manifests 2 | . 1 . . . 1 Registered Components 2 | . 1 . . . 1 Fabricator Hacks . | . . . . . . Repair Station Hacks . | . . . . . . Recycling Unit Hacks . | . . . . . . Scanalyzer . | . . . . . . Garrison Access Hacks . | . . . . . . Unauthorized Hacks 6 | . 3 . . . 3 Terminals 6 | . 3 . . . 3 Botnet 4 | . 2 . . . 2 Operators 2 | . 1 . . . 1 Fabricators . | . . . . . . Repair Stations . | . . . . . . Recycling Units . | . . . . . . Scanalyzers . | . . . . . . Garrison Access . | . . . . . . Data Cores Recovered 1 | . . . . . 1 Used 1 | . . . . . 1 Hacking Detections 7 | . 3 . . . 4 Full Trace Events 5 | . 3 . . . 2 Feedback Events 1 | . . . . . 1 Corruption 1 | . . . . . 1 Feedback Blocked . | . . . . . . Robot Schematics Acquired . | . . . . . . Robots Built . | . . . . . . Authchips . | . . . . . . Time . | . . . . . . Total Robot Build Rating . | . . . . . . Part Schematics Acquired . | . . . . . . Parts Built . | . . . . . . Authchips . | . . . . . . Time . | . . . . . . Total Part Build Rating . | . . . . . . Parts Repaired . | . . . . . . Time . | . . . . . . Parts Recycled . | . . . . . . Recycled Matter . | . . . . . . Retrieved Matter . | . . . . . . Retrieved Components . | . . . . . . Parts Scanalyzed . | . . . . . . Part Schematics Acquired . | . . . . . . Parts Damaged . | . . . . . . Bothacking | -11 -10 -10 -10 -9 -8 ------------ Run | Yrd Mat Min Exi Min Mat Used RIF Installer . | . . . . . . Robots Hacked . | . . . . . . Non-combat . | . . . . . . Combat . | . . . . . . Robot Hacks Applied . | . . . . . . Relay Couplers Released . | . . . . . . Fabnet Peak Effective % . | . . . . . . Robots Rewired . | . . . . . . Allies Hacked . | . . . . . . Hacks Repelled . | . . . . . . Allies | -11 -10 -10 -10 -9 -8 -------- Run | Yrd Mat Min Exi Min Mat Total Allies . | . . . . . . Largest Group . | . . . . . . Highest-Rated Group . | . . . . . . Highest-Rated Ally . | . . . . . . Total Orders . | . . . . . . Ally Attacks . | . . . . . . Total Damage . | . . . . . . Kills . | . . . . . . Allies Corrupted . | . . . . . . Allies Melted . | . . . . . . Intel | -11 -10 -10 -10 -9 -8 ------- Run | Yrd Mat Min Exi Min Mat Active Infowar (turns) 252 | . . . . . 252 Optics 252 | . . . . . 252 Robot Analysis Total . | . . . . . . Derelict Logs Recovered 1 | . . . . 1 . Drone Launches . | . . . . . . Drone Recoveries . | . . . . . . Exploration | -11 -10 -10 -10 -9 -8 ------------- Run | Yrd Mat Min Exi Min Mat Turns Passed 4342 | 92 532 285 1941 901 591 Spaces Moved 3884 | 87 346 230 1686 727 808 Core 32 | 2 . . . . 30 Treads . | . . . . . . Legs . | . . . . . . Wheels 3125 | 85 346 230 1686 727 51 Hover . | . . . . . . Flight 727 | . . . . . 727 Fastest Speed 34 | 50 90 115 115 115 34 Average Speed 98 | 89 103 115 115 115 45 Slowest Speed 200 | 100 115 115 115 115 200 Overloaded Moves . | . . . . . . Propulsion Burnouts . | . . . . . . Robots Hopped 2 | . . . . . 2 Potential Cave-ins . | . . . . . . Cave-ins Triggered . | . . . . . . Exploration Rate (%) 57 | 4 41 43 94 94 67 Regions Visited 5 Branch Regions 3 Pre-discovered Areas 1 | . . . . 1 . Known Exits Taken 3 | . 1 . 1 1 . Unknown Exits Taken 2 | 1 . 1 . . . Scrap Searched 2 | . . . . 2 . Spaces Dug 2 | . . . . . 2 Terrain Destroyed 43 | . . . . . 43 Melee 2 | . . . . . 2 Projectile . | . . . . . . AOE 41 | . . . . . 41 Terrain Rammed . | . . . . . . Walls Destroyed . | . . . . . . Machines Disabled . | . . . . . . Actions | -11 -10 -10 -10 -9 -8 --------- Run | Yrd Mat Min Exi Min Mat Total 4178 | 97 434 237 1689 759 962 Wait 88 | . 28 . . 6 54 Move 3875 | 86 345 229 1685 726 804 Hop 2 | . . . . . 2 Pick Up 20 | 3 9 . 1 4 3 Fast Attach 23 | 7 3 1 . . 12 Attach 18 | . 5 . 1 . 12 Detach 12 | 1 1 . 1 . 9 Swap 1 | . . . . 1 . Drop 10 | . . . 1 1 8 Fire 104 | . 43 7 . 21 33 Melee 16 | . . . . . 16 Ram 9 | . . . . . 9 Kick . | . . . . . . Crush . | . . . . . . Escape Stasis . | . . . . . . Rewire . | . . . . . . Trap . | . . . . . . Miscellaneous . | . . . . . . Route ------- -11/Scrapyard -10/Materials (discovered 3 exits: [*Mat] / *Min x2) -10/Mines (discovered 2 exits: [*Mat] / *Exi) -10/Exiles (discovered 2 exits: *Min x2) -9/Mines (discovered 2 exits: *Mat x2) -8/Materials (discovered 4 exits: *Fac x2 / *Sto x2) History --------- Turn | Location | Event 7 | -11/Scrapyard | Discovered new exit (range 16) 93 | -11/Scrapyard | Entered Materials 315 | -10/Materials | Build established: Mutant 383 | -10/Materials | Identified exit to Mines 534 | -10/Materials | Discovered new exit (range 5) 625 | -10/Materials | Entered Mines 754 | -10/Mines | Discovered new exit (range 12) 902 | -10/Mines | Deemed a non-threat by the Exiles lab entrance 903 | -10/Mines | Discovered new exit (range 5) 910 | -10/Mines | Entered Exiles 910 | -10/Exiles | Found Exiles lab abandoned 1339 | -10/Exiles | Discovered new exit (range 14) 2637 | -10/Exiles | Discovered new exit (range 15) 2656 | -10/Exiles | Identified exit to Mines 2851 | -10/Exiles | Entered Mines 2874 | -9/Mines | Core integrity fell below 50% 2938 | -9/Mines | Discovered new exit (range 16) 2992 | -9/Mines | Identified exit to Materials 3036 | -9/Mines | Learned location of Zion (-7) 3093 | -9/Mines | Found DCF Scrap (14 items) 3613 | -9/Mines | Discovered exit to Materials (range 10) 3752 | -9/Mines | Entered Materials 3752 | -8/Materials | Evolved 4 slots: Propulsion x1, Utility x3 3802 | -8/Materials | Discovered new exit (range 16) 3864 | -8/Materials | Identified exit to Storage 3907 | -8/Materials | Discovered exit to Storage (range 12) 3916 | -8/Materials | Lost 4 parts (1p2n1w) 4025 | -8/Materials | Lost 7 parts (2p2n3w) 4058 | -8/Materials | Core integrity fell below 50% 4161 | -8/Materials | Discovered new exit (range 12) 4181 | -8/Materials | Identified exit to Factory 4301 | -8/Materials | Discovered exit to Factory (range 20) 4335 | -8/Materials | Core integrity fell below 20% 4343 | -8/Materials | Destroyed by Y-45 Defender with Heavy Assault Rifle Last Messages --------------- Investigation squad. 04270_ R-06 Scavenger collects Mni. Grenade Launcher. 04289_ T-07 Excavator is excavating. 04301_ EXIT=FOUND: FACTORY 04305_ U-05 Engineer lays Concrete. 04326_ Katana destroyed. 04330_ Flight Unit destroyed. 04334_ Slammed into Y-45 Defender. 04340_ Hacking Suite destroyed. 04340_ Slammed into Y-45 Defender. 04340_ Destabilizing: System interference. 04340_ Adv. Visual Processing Unit temporarily disabled. 04341_ Slammed into Y-45 Defender. 04341_ Hacking Suite destroyed. 04341_ System corrupted by crushing effect (+2). 04341_ Destabilizing: System corrupted (+1). 04342_ Slammed into Y-45 Defender. 04343_ C-30 ARC bursts open, deploying its payload. 04343_ G-50 Soldier unfolds itself. 04343_ G-47 Trooper unfolds itself. Map ----- +----------------------------------------------------+ | #???????###########????????????????????? | | #??????????????????????????[???????????? | | #??????????????????????????????????????? | | #??????????????????????????????????????? | | ###########??????????????????????????????????????? | | ??????????????????????????????????????????????!??? | | ?????????????????????????????????????????????????? | | ?????????????????????????????????????????????????? | | ?????????????????????????????????????????????????? | | ????????????????????????#+#??????????????????????? | | ???????????????????????? ??????????????????????? | | ???????????????????????? ##????????????????????? | | ???????????????????????+ ????????????????????? | | ???????????????????????# ?????????????????????? | | ??????????????????????# ?????????????????????? | | #??????????????????????# ?????????????????????? | | ?????? ????????????????# ?????????????????????? | | ???? #??????????????+ ?????????????????????? | | ??" #??????????????# k #?????????????????????? | | """ #?????????###?## ##????????????????????? | | #?????????? ! # #????????????????????? | | """ #??????????? #g ###??????????????????? | | ??" ! #????????????%gg ???????????????????? | | ???? #?????????????# #????????????????????? | | ?????? ???????????????? Y ?????????????????????? | | ??#######???????????????#@#??????????????????????? | | ?? #???????????????#%#?########?????????????? | | ? #???????????????# #?# #?????????????? | | ? #???????????????# #?# #?????????????? | | #???????????????# #?# !##????????????? | | #???????????????# #?# "#????????????? | | #???????????????#s#?# [ ##?#??????????? | | #???????????????# #?# #? #??????????? | | #???????????????# #####+##### #??????????? | | #############???????????# +??????????? | | #???????????# #######????? | | #???????????# ####?? | | #???????????# ? | | +???????????# |% #####? | | "" """ #???????????# | #????? | | "" """ #???????????# [ #????? | | "" """ ########????# "#????? | | ###### == T#????? | | ^ = "#????? | | #????? | | ########## ##### """ """ ! #????? | | #???????# #???# """ """ ########### +????? | | #???????# #???# """ """ #?????????? #????? | | #########+#???#^ ^ =#??????????? #????? | | # ???# #??????????????????? | +----------------------------------------------------+ Best States ------------- Heat Dissipation 31 Energy Generation 14 Energy Capacity 415 Matter Stores 300 Matter Capacity 300 Sight Range 20 Terrain Scan Density 10 Armor Coverage 150 Utility Shielding 66 Evasion (%) 63 Targeting Accuracy 5 Offensive Hacking 20 Item Schematics ----------------- None Robot Schematics ------------------ None Fabricated ------------ Nothing Repaired ---------- Nothing Alien Tech Used ----------------- None Achievements -------------- Dynamic Key Challenges ------------ None Game ------ Seed LightTowerBiocell Manual? 0 Play Time 00:27:59 Cumulative 16.6 hours Start 2025.10.06 @ 20:56:31 End 2025.10.06 @ 21:23:14 Sessions 1 Manual Loads 0 Difficulty Rogue Special Mode None Game No. 49 Rogue 42 Adventurer 7 Explorer 0 Win Type - Total 0 Types 0/0/0/0/0/0/0/0/0/0 Lore% 4 Gallery% 18 Achievement% 17 Wizard Run 0 Options --------- Layout 1 ASCII 0 Keyboard 1 Movement Vi Keybinds 0 Fullscreen 1 Font 24/Smallcaps Map View 76x35 Zoom Use 0% Tactical HUD 1 Map Filters NONE Filters NONE Steam 1 RUN: b041ab8d-212b-40e1-a746-5e15c1535e2b